Workbook

Sheet Expenditure Assumptions 2013-14
A1: Expenditure Assumptions 2013-14
C3: 2012-13 | D3: 2013-14
B5: Salaries
B6: Gurveen | D6: 16500
B7: Amit | D7: 13000
B8: Dhanesh | D8: 12000
B9: Jayashree | D9: 6500
B10: Kala (cooking help) | D10: 3500
B11: Number of part time teachers | D11: 1
B12: Salary per head | D12: 1500
B14: General
B15: Number of 14- children | D15: 10
B16: Number of 14+ children | D16: 3
B17: Number of working days | D17: 200
B18: Per month Lunch cost | D18: 350
B19: Per month snacks cost | D19: 150
B21: Trips
B22: Outstation trips
B23: Number of trips in a year | D23: 2
B24: Number of people | D24: 3
B25: Number of days | D25: 7
B26: Per head travel | D26: 1000
B27: Food (per day) | D27: 100
B28: Stay (per day) | D28: 100
B29: Local trips
B30: Number of trips per month | D30: 1
B31: Travel cost (per trip) | D31: 100
B32: Number of children | D32: 3
B33: Stay | D33: 0
B35: Apprenticeships
B36: Outstation apprenticeships
B37: Number of trips in a year | D37: 0
B38: % of children | D38: 1
B39: Number of children | D39: =D38*D16 -> 3
B40: Number of days | D40: 6
B41: Per head travel | D41: 1000
B42: Food (per day) | D42: 200
B43: Stay (per day) | D43: 100
B44: Payment to Mentor (per day) | D44: 100
B45: Within city
B46: Number of children | D46: =D16-D39 -> 0
B47: Travel cost (per day) | D47: 50
B48: Number of days | D48: 0
B49: Food | D49: 0
B50: Payment to Mentor (per day) | D50: 100
B51: Material cost (per month) | D51: 500
B53: Hands on activities
B54: Pottery (per month) | D54: 0
B55: Embroidery (per student per month) | D55: 100
B56: Wood Work (per month) | D56: 100
B57: Gardening (per month) | D57: 200

Sheet Expenditure Sheet
B2: Expenditure Head | C2: Expenses for 2012-13 | D2: Estimated amount 2013-14 | E2: Details of calculation
B3: Teacher Salaries
B4: Principal | C4: 167700 | D4: ='Expenditure Assumptions 2013-14'!D6*12 -> 198000 | E4: Based on decision by board, in order to take into account the inflation teacher's have been given a 15% hike in salary
B5: Full time Teachers | C5: 396300 | D5: =SUM('Expenditure Assumptions 2013-14'!D7:D9)*12 -> 378000 | E5: Based on decision by board, in order to take into account the inflation teacher's have been given a 15% hike in salary
B6: Part time teachers | C6: 0 | D6: ='Expenditure Assumptions 2013-14'!D11*'Expenditure Assumptions 2013-14'!D12*12 -> 18000 | E6: Part time teacher coming to the centre once for teaching Kuchipudi
B7: Total teacher's salary | C7: =SUM(C4:C6) -> 564000 | D7: =SUM(D4:D6) -> 594000
B9: Educational expenses
B10: Academics related
B11: Teaching-learning material | C11: 1660 | D11: 2500
B12: Books/Library | C12: 600 | D12: 6000 | E12: We have to increase the number of books and resources needed by older students
B13: Notebooks & Stationary | C13: 650 | D13: 1000
B14: Sports Material | C14: 195 | D14: 500
B15: Hands on activities (See down B70)
B16: Pottery | C16: 0 | D16: ='Expenditure Assumptions 2013-14'!D54*12 -> 0 | E16: The cost of this has been included in the projects (down B21)
B17: Embroidery | C17: 0 | D17: ='Expenditure Assumptions 2013-14'!D55*6*8 -> 4800 | E17: Assuming average of 6 students working for 8 months on the products
B18: Wood Work | C18: 0 | D18: ='Expenditure Assumptions 2013-14'!D56*12 -> 1200
B19: Musicals | C19: 0 | D19: 1000 | E19: Repair of tabla and buying some wind instruments
B20: Gardening | C20: 1712 | D20: ='Expenditure Assumptions 2013-14'!D57*12 -> 2400 | E20: Includes cost of seed, maintaining the square foot garden and buying new pots for terrace shed
B21: Projects | C21: 0 | D21: 12000 | E21: This year we have undertaken a few educational projects with children, and community members. As part of the projects we have build a shed, made a few educational games, handmade paper noteboks.
B22: Events
B23: Exhibitions | C23: 3641 | D23: 3000
B24: Trips
B25: Outstation trips | C25: 0 | D25: ='Expenditure Assumptions 2013-14'!$D$23*'Expenditure Assumptions 2013-14'!$D$24*('Expenditure Assumptions 2013-14'!$D$26+('Expenditure Assumptions 2013-14'!$D$27+'Expenditure Assumptions 2013-14'!$D$28)*'Expenditure Assumptions 2013-14'!$D$25) -> 14400 | E25: Children are required to additionally pay for their trips. However, the given cost is for the few children who will not be able to pay for the trips
B26: Local trips | C26: 0 | D26: ='Expenditure Assumptions 2013-14'!D30*'Expenditure Assumptions 2013-14'!D31*'Expenditure Assumptions 2013-14'!D32*6 -> 1800
B27: Apprenticeship Expenses
B28: Outstation apprenticeships | C28: 0 | D28: ='Expenditure Assumptions 2013-14'!D37*'Expenditure Assumptions 2013-14'!D39*'Expenditure Assumptions 2013-14'!D41+'Expenditure Assumptions 2013-14'!D37*'Expenditure Assumptions 2013-14'!D39*'Expenditure Assumptions 2013-14'!D40*('Expenditure Assumptions 2013-14'!D42+'Expenditure Assumptions 2013-14'!D43) -> 0 | E28: We had calculated the apprenticeship cost which comes to nearly the cost of outstation trip. The cost also includes the payment to the mentor (if the mentor so desires). However, as we might not be carrying out any outstation apprenticeship trips this year we have removed the cost from this years budget
B29: Mentor payment | C29: 0 | D29: ='Expenditure Assumptions 2013-14'!D37*'Expenditure Assumptions 2013-14'!D39*'Expenditure Assumptions 2013-14'!D40*'Expenditure Assumptions 2013-14'!D44 -> 0
B30: Within city | C30: 0 | D30: ='Expenditure Assumptions 2013-14'!D46*'Expenditure Assumptions 2013-14'!D48*'Expenditure Assumptions 2013-14'!D47 -> 0
B31: Mentor payment | C31: 0 | D31: ='Expenditure Assumptions 2013-14'!D48*'Expenditure Assumptions 2013-14'!D50 -> 0
B32: Material cost | C32: 0 | D32: =12*'Expenditure Assumptions 2013-14'!D51*'Expenditure Assumptions 2013-14'!D46 -> 0
B33: Total Educational expenses | C33: =SUM(C11:C32) -> 8458 | D33: =SUM(D11:D32) -> 50600
B35: Educare expenses
B36: Printing cost | C36: 0 | D36: =5000*2 -> 10000 | E36: Cost of 5,000 per issue. This year we wish to roll out two issues
B37: Postage cost | C37: 0 | D37: =10*120*2 -> 2400 | E37: Cost INR 10 for postage per copy. We send 120 copies by mail per issue. Rest are sent as soft copies.
B38: Total Educare cost | D38: =D36+D37 -> 12400
B40: Karvaan expenses | E40: We have started Saturday community café called Karvaan. This is to help more people from the community around engage with the centre. The total annual cost for running it amounts to INR 25,000. However we have not added this cost to the budget as we try to recover this cost through donations from participants and are basing it on gift economy.
B41: Monthly food expense | D41: =1000*12 -> 12000
B42: Monthly workshop expenses | D42: =1300*10 -> 13000
B44: Food cost | E44: For 2 months initially we had served only snacks and later in September resumed with lunch. Snacks cost us around INR 150 per person per month and lunch a little more than INR 350 per person per month. Cooking staff salary is INR 3,500 pm. The salary has been increased keeping in account the inflation and to bridge the gap between salaries all of us take.
B45: Lunch expense | C45: 44996 | D45: =('Expenditure Assumptions 2013-14'!D15+'Expenditure Assumptions 2013-14'!D16+5)*(('Expenditure Assumptions 2013-14'!D18*8)+('Expenditure Assumptions 2013-14'!D19*2)) -> 55800
B46: Cooking staff cost | C46: 25500 | D46: ='Expenditure Assumptions 2013-14'!D10*12 -> 42000
B47: Total lunch cost | C47: =SUM(C45:C46) -> 70496 | D47: =SUM(D45:D46) -> 97800
B49: Administration
B50: Audit | C50: 0 | D50: =5000+7000 -> 12000 | E50: Audit fees for the year 2012-13 (INR 5000) was also paid in 2013-14 and so does not reflect in the Audit report. The total Admin cost this year inludes INR 5000 from last year and INR 7000 (increment of INR 2000) this year.
B51: Insurance | C51: 3204 | D51: 3500
B52: Building Tax | C52: 3318 | D52: 3500
B53: Electricity and water | C53: 7579 | D53: 7600
B54: Postage and telephone | C54: 1951 | D54: =200*12 -> 2400 | E54: Average of INR 200 pm
B55: Conveyance | C55: 390 | D55: 1500
B56: Travel | C56: 0 | D56: 0
B57: Building Maintenance & Repair | C57: 250 | D57: 2000 | E57: Window frame lining
B58: Computer Maintenance | C58: 5000 | D58: 0
B59: Furniture and Fixtures maintenance | C59: 0 | D59: 1000 | E59: Some old tables needs repair
B60: Stationery, Xerox, Printing | C60: 417 | D60: 1000
B61: Advertising | C61: 0 | D61: 2000 | E61: Advertising for the new programs - 14+ program, Karvaan, community engagement initiatives.
B62: Hospitality | C62: 3485 | D62: 3500
B63: Sanitation & Cleanliness | C63: 1674 | D63: 1700
B64: Board Meetings | C64: 0 | D64: 500
B65: Miscellaneous | C65: 271 | D65: 1000
B66: Total Administration cost | C66: =SUM(C50:C65) -> 27539 | D66: =SUM(D50:D65) -> 43200
B68: Total Expenses | C68: =C66+C47+C38+C33+C7 -> 670493 | D68: =D66+D47+D38+D33+D7 -> 798000
B70: Hands on activities (*)
B71: We have started community learning programs where in especially on Saturdays we invite people from the community around to come and participate in learning different things.

Sheet Income sheet
B2: Income Head | C2: Receipts for 2012-13 | D2: Estimated Amount 2013-14 | E2: Details of calculation
B3: Fees | C3: 287350 | D3: =C30 -> 241000 | E3: Details are given below C30
B4: ASHA. Seattle + Donor specific | C4: 326025 | D4: 320000 | E4: Includes individual donation from Vamshi. The amount depends on the current INR value.
B5: Donation towards food | C5: 37125 | D5: =350*10*8+150*10*2 -> 31000 | E5: 350 collected from 7 children and 3 adults for 8 months + 150 collected from 7 children and 3 adults for 2 months
B6: Donation towards education centre | C6: 204594 | D6: 30000 | E6: The donations in 2012-13 includes specific donations (1,40,000) made in the year from friends abroad
B7: Miscellenous (educare subscription, sales of cards) | C7: 0 | D7: 0
B8: Funds given for Volunteer expenses | C8: 70100 | D8: 0 | E8: We dont have a volunteer coming this year
B9: Total Earnings | C9: =SUM(C3:C8) -> 925194 | D9: =SUM(D3:D8) -> 622000
B11: Interest earned from Fixed Deposits | C11: 493317 | D11: Same | E11: We plough this back to the Corpus fund for long term sustainbility and DO NOT spend from that, hence donot consider it as usable income.
B12: Savings bank interest | C12: 10441 | D12: Same
B14: Fees collected in 2013-14
B16: Students | C16: Yearly fees | E16: The fees varies depending on what the parents have wished to pay based on their financial capacity
B17: Student 1 | C17: 30000
B18: Student 2 | C18: 30000
B19: Student 3 | C19: 30000
B20: Student 4 | C20: 30000
B21: Student 5 | C21: 30000
B22: Student 6 | C22: 30000
B23: Student 7 | C23: 20000
B24: Student 8 | C24: 20000
B25: Student 9 | C25: 6000
B26: Student 10 | C26: 6000
B27: Student 11 | C27: 3000
B28: Student 12 | C28: 3000
B29: Student 13 | C29: 3000
B30: Total fees | C30: =SUM(C17:C29) -> 241000
